[Event "MČR mládeže v rapid šachu 2024 H10"]
[Site "Harrachov, Czech Republic"]
[Date "????.??.??"]
[Round "8.1"]
[White "Bucek Vit"]
[Black "Vo Daniel"]
[Result "0-1"]
[TimeControl "20+5"]
[WhiteFideId "23750812"]
[BlackFideId "23761229"]
[WhiteElo "1586"]
[BlackElo "1679"]

1. e4 {[%clk 00:20:08]} {[%emt 00:00:02]} c5 {[%clk 00:20:07]} {[%emt
00:00:02]} 2. Nf3 {[%clk 00:20:12]} {[%emt 00:00:01]} d6 {[%clk 00:20:11]}
{[%emt 00:00:01]} 3. d4 {[%clk 00:20:16]} {[%emt 00:00:02]} cxd4 {[%clk
00:20:15]} 4. Nxd4 {[%clk 00:20:20]} {[%emt 00:00:01]} Nf6 {[%clk 00:20:19]}
{[%emt 00:00:01]} 5. Nc3 {[%clk 00:20:24]} a6 {[%clk 00:20:21]} {[%emt
00:00:03]} 6. f3 {[%clk 00:20:28]} e5 {[%clk 00:20:24]} {[%emt 00:00:02]} 7.
Nb3 {[%clk 00:20:32]} Be6 {[%clk 00:20:27]} {[%emt 00:00:03]} 8. Be3 {[%clk
00:20:36]} Be7 {[%clk 00:20:30]} {[%emt 00:00:02]} 9. Qd2 {[%clk 00:20:37]}
{[%emt 00:00:04]} Nbd7 {[%clk 00:20:27]} {[%emt 00:00:07]} 10. g4 {[%clk
00:20:41]} {[%emt 00:00:01]} b5 {[%clk 00:20:23]} {[%emt 00:00:09]} 11. g5
{[%clk 00:20:45]} {[%emt 00:00:01]} Nh5 {[%clk 00:20:23]} {[%emt 00:00:05]} 12.
O-O-O {[%clk 00:20:42]} {[%emt 00:00:07]} Rc8 {[%clk 00:20:17]} {[%emt
00:00:11]} 13. h4 {[%clk 00:20:28]} {[%emt 00:00:20]} Nb6 {[%clk 00:20:07]}
{[%emt 00:00:15]} 14. Kb1 {[%clk 00:20:25]} {[%emt 00:00:07]} Nc4 {[%clk
00:20:08]} {[%emt 00:00:04]} 15. Bxc4 {[%clk 00:20:16]} {[%emt 00:00:13]} bxc4
{[%clk 00:20:12]} {[%emt 00:00:02]} 16. Nc1 {[%clk 00:20:15]} {[%emt 00:00:05]}
Rb8 {[%clk 00:19:56]} {[%emt 00:00:22]} 17. N1e2 {[%clk 00:19:50]} {[%emt
00:00:30]} Qa5 {[%clk 00:18:51]} {[%emt 00:01:11]} 18. Ka1 {[%clk 00:19:23]}
{[%emt 00:00:32]} O-O {[%clk 00:16:47]} {[%emt 00:02:09]} 19. Nd5 {[%clk
00:19:23]} {[%emt 00:00:05]} Qd8 {[%clk 00:16:40]} {[%emt 00:00:12]} 20. Rhg1
{[%clk 00:19:03]} {[%emt 00:00:23]} a5 {[%clk 00:16:14]} {[%emt 00:00:33]} 21.
Ng3 {[%clk 00:18:56]} {[%emt 00:00:11]} Nxg3 {[%clk 00:15:53]} {[%emt
00:00:26]} 22. Rxg3 {[%clk 00:19:00]} {[%emt 00:00:02]} Bxd5 {[%clk 00:15:52]}
{[%emt 00:00:06]} 23. exd5 {[%clk 00:19:02]} {[%emt 00:00:03]} a4 {[%clk
00:15:46]} {[%emt 00:00:12]} 24. h5 {[%clk 00:18:57]} {[%emt 00:00:09]} a3
{[%clk 00:15:50]} {[%emt 00:00:02]} 25. b3 {[%clk 00:18:36]} {[%emt 00:00:26]}
cxb3 {[%clk 00:15:40]} {[%emt 00:00:15]} 26. axb3 {[%clk 00:18:37]} {[%emt
00:00:03]} f5 {[%clk 00:15:21]} {[%emt 00:00:25]} 27. f4 {[%clk 00:17:39]}
{[%emt 00:01:03]} Qc7 {[%clk 00:14:21]} {[%emt 00:01:05]} 28. fxe5 {[%clk
00:17:04]} {[%emt 00:00:39]} dxe5 {[%clk 00:14:03]} {[%emt 00:00:23]} 29. Rgg1
{[%clk 00:16:19]} {[%emt 00:00:50]} Bb4 {[%clk 00:13:42]} {[%emt 00:00:26]} 30.
Qd3 {[%clk 00:15:29]} {[%emt 00:00:54]} e4 {[%clk 00:13:27]} {[%emt 00:00:21]}
31. d6 {[%clk 00:13:16]} {[%emt 00:02:19]} Qc3+ {[%clk 00:11:06]} {[%emt
00:02:26]} 32. Qxc3 {[%clk 00:13:15]} {[%emt 00:00:06]} Bxc3+ {[%clk 00:11:10]}
{[%emt 00:00:02]} 33. Ka2 {[%clk 00:13:18]} f4 {[%clk 00:11:14]} {[%emt
00:00:01]} 34. Bc5 {[%clk 00:13:09]} {[%emt 00:00:15]} e3 {[%clk 00:10:44]}
{[%emt 00:00:35]} 35. d7 {[%clk 00:13:09]} {[%emt 00:00:04]} Rfd8 {[%clk
00:10:45]} {[%emt 00:00:04]} 36. Be7 {[%clk 00:12:27]} {[%emt 00:00:48]} e2
{[%clk 00:10:45]} {[%emt 00:00:05]} 37. Rd3 {[%clk 00:11:57]} {[%emt 00:00:34]}
e1=Q {[%clk 00:10:06]} {[%emt 00:00:44]} 38. Rxe1 {[%clk 00:12:00]} {[%emt
00:00:02]} Bxe1 {[%clk 00:10:04]} {[%emt 00:00:07]} 39. Bxd8 {[%clk 00:12:02]}
{[%emt 00:00:04]} Rxd8 {[%clk 00:10:08]} {[%emt 00:00:01]} 40. Kxa3 {[%clk
00:11:56]} {[%emt 00:00:11]} Kf7 {[%clk 00:10:03]} {[%emt 00:00:09]} 41. Rf3
{[%clk 00:11:30]} {[%emt 00:00:31]} Bd2 {[%clk 00:09:47]} {[%emt 00:00:20]} 42.
Rd3 {[%clk 00:11:07]} {[%emt 00:00:30]} Be3 {[%clk 00:09:50]} {[%emt 00:00:02]}
43. c4 {[%clk 00:10:36]} {[%emt 00:00:35]} Ke7 {[%clk 00:09:52]} {[%emt
00:00:03]} 44. Rd1 {[%clk 00:10:29]} {[%emt 00:00:10]} Rxd7 {[%clk 00:09:54]}
{[%emt 00:00:05]} 45. Rf1 {[%clk 00:10:28]} {[%emt 00:00:05]} Ke6 {[%clk
00:09:43]} {[%emt 00:00:17]} 46. b4 {[%clk 00:10:25]} {[%emt 00:00:08]} Kf5
{[%clk 00:09:32]} {[%emt 00:00:15]} 47. c5 {[%clk 00:10:22]} {[%emt 00:00:08]}
Rc7 {[%clk 00:09:30]} {[%emt 00:00:07]} 48. Rd1 {[%clk 00:09:52]} {[%emt
00:00:34]} f3 {[%clk 00:09:32]} {[%emt 00:00:04]} 49. Kb3 {[%clk 00:09:39]}
{[%emt 00:00:18]} f2 {[%clk 00:09:28]} {[%emt 00:00:09]} 50. Kc4 {[%clk
00:09:35]} {[%emt 00:00:09]} Kf4 {[%clk 00:09:32]} {[%emt 00:00:01]} 51. Kb5
{[%clk 00:09:21]} {[%emt 00:00:19]} Kf3 {[%clk 00:09:35]} {[%emt 00:00:01]} 52.
Kb6 {[%clk 00:09:18]} {[%emt 00:00:09]} Bf4 {[%clk 00:09:21]} {[%emt 00:00:19]}
53. b5 {[%clk 00:08:48]} {[%emt 00:00:34]} Ke2 {[%clk 00:09:21]} {[%emt
00:00:06]} 54. Ra1 {[%clk 00:08:25]} {[%emt 00:00:27]} f1=Q {[%clk 00:09:22]}
{[%emt 00:00:04]} 55. Rxf1 {[%clk 00:08:28]} {[%emt 00:00:03]} Kxf1 {[%clk
00:09:26]} {[%emt 00:00:02]} 56. c6 {[%clk 00:08:27]} {[%emt 00:00:06]} Kg2
{[%clk 00:09:25]} {[%emt 00:00:06]} 57. Kc5 {[%clk 00:08:28]} {[%emt 00:00:04]}
Kg3 {[%clk 00:09:27]} {[%emt 00:00:03]} 58. b6 {[%clk 00:08:30]} {[%emt
00:00:03]} Re7 {[%clk 00:09:29]} {[%emt 00:00:03]} 59. Kd5 {[%clk 00:08:02]}
{[%emt 00:00:33]} Kg4 {[%clk 00:09:26]} {[%emt 00:00:08]} 60. g6 {[%clk
00:07:38]} {[%emt 00:00:29]} h6 {[%clk 00:09:27]} {[%emt 00:00:04]} 61. Kd4
{[%clk 00:07:32]} {[%emt 00:00:12]} Be3+ {[%clk 00:09:25]} {[%emt 00:00:07]} 62.
Kd5 {[%clk 00:07:36]} {[%emt 00:00:01]} Bxb6 {[%clk 00:09:28]} {[%emt
00:00:02]} 63. Kd6 {[%clk 00:07:40]} Rc7 {[%clk 00:09:30]} {[%emt 00:00:03]} 64.
Kd5 {[%clk 00:07:43]} {[%emt 00:00:02]} Kxh5 {[%clk 00:09:32]} {[%emt
00:00:03]} 65. Kd6 {[%clk 00:07:47]} Kxg6 {[%clk 00:09:35]} {[%emt 00:00:03]}
66. Kd5 {[%clk 00:07:51]} h5 {[%clk 00:09:38]} 67. Kd6 {[%clk 00:07:55]} h4
{[%clk 00:09:39]} {[%emt 00:00:05]} 68. Kd5 {[%clk 00:07:59]} {[%emt 00:00:01]}
Rxc6 {[%clk 00:09:42]} {[%emt 00:00:02]} 69. Ke5 {[%clk 00:08:01]} {[%emt
00:00:03]} h3 {[%clk 00:09:46]} {[%emt 00:00:02]} 70. Kf4 {[%clk 00:07:59]}
{[%emt 00:00:07]} h2 {[%clk 00:09:48]} {[%emt 00:00:03]} 71. Kg3 {[%clk
00:08:02]} {[%emt 00:00:02]} Bc7+ {[%clk 00:09:52]} {[%emt 00:00:01]} 72. Kg2
{[%clk 00:08:03]} {[%emt 00:00:03]} Rc2+ {[%clk 00:09:56]} {[%emt 00:00:02]} 73.
Kh1 {[%clk 00:08:06]} {[%emt 00:00:01]} Rc1+ {[%clk 00:09:59]} {[%emt
00:00:01]} 74. Kg2 {[%clk 00:08:10]} h1=Q+ {[%clk 00:10:01]} {[%emt 00:00:03]}
75. Kf2 {[%clk 00:08:14]} {[%emt 00:00:10]} Rc2+ {[%clk 00:10:00]} {[%emt
00:00:02]} 76. Ke3 {[%clk 00:08:16]} {[%emt 00:00:28]} Qh3+ {[%clk 00:10:03]}
{[%emt 00:00:02]} 77. Kd4 {[%clk 00:08:20]} Qc3+ {[%clk 00:10:07]} {[%emt
00:00:01]} 78. Ke4 {[%clk 00:08:23]} {[%emt 00:00:01]} Re2+ {[%clk 00:10:10]}
{[%emt 00:00:02]} 79. Kd5 {[%clk 00:08:27]} {[%emt 00:00:01]} Re5# {[%clk
00:10:11]} {[%emt 00:00:04]} 0-1



[ePGN "0.1;DGT LiveChess/2.2.6"]

[Event "MČR mládeže v rapid šachu 2024 H10"]
[Site "Harrachov, Czech Republic"]
[Date "????.??.??"]
[Round "8.2"]
[White "Zelenka Tomas"]
[Black "Zidek Damian"]
[Result "0-1"]
[TimeControl "20+5"]
[WhiteFideId "23750200"]
[BlackFideId "23761652"]
[WhiteElo "1607"]
[BlackElo "1763"]

1. e4 {[%clk 00:20:08]} {[%emt 00:01:59]} e6 {[%clk 00:20:10]} 2. d4 {[%clk
00:20:12]} {[%emt 00:00:03]} d5 {[%clk 00:20:14]} 3. Nd2 {[%clk 00:20:12]}
{[%emt 00:00:05]} c5 {[%clk 00:20:17]} {[%emt 00:00:01]} 4. c3 {[%clk
00:20:07]} {[%emt 00:00:11]} Nc6 {[%clk 00:20:21]} {[%emt 00:00:01]} 5. Ngf3
{[%clk 00:20:04]} {[%emt 00:00:07]} Bd7 {[%clk 00:20:19]} {[%emt 00:00:06]} 6.
Be2 {[%clk 00:19:24]} {[%emt 00:00:44]} Rc8 {[%clk 00:20:01]} {[%emt 00:00:25]}
7. O-O {[%clk 00:19:09]} {[%emt 00:00:20]} cxd4 {[%clk 00:20:01]} {[%emt
00:00:05]} 8. Nxd4 {[%clk 00:18:55]} {[%emt 00:00:19]} Nf6 {[%clk 00:19:28]}
{[%emt 00:00:38]} 9. exd5 {[%clk 00:18:16]} {[%emt 00:00:44]} exd5 {[%clk
00:19:25]} {[%emt 00:00:08]} 10. Re1 {[%clk 00:18:12]} {[%emt 00:00:08]} Be7
{[%clk 00:19:27]} {[%emt 00:00:02]} 11. Nxc6 {[%clk 00:17:06]} {[%emt
00:01:13]} bxc6 {[%clk 00:19:00]} {[%emt 00:00:32]} 12. Nb3 {[%clk 00:16:58]}
{[%emt 00:00:12]} O-O {[%clk 00:18:57]} {[%emt 00:00:09]} 13. Bf4 {[%clk
00:16:52]} {[%emt 00:00:11]} Qb6 {[%clk 00:16:44]} {[%emt 00:02:19]} 14. Bd3
{[%clk 00:15:42]} {[%emt 00:01:13]} Rfe8 {[%clk 00:15:44]} {[%emt 00:01:06]} 15.
Be5 {[%clk 00:13:53]} {[%emt 00:01:52]} c5 {[%clk 00:14:52]} {[%emt 00:01:00]}
16. Bxf6 {[%clk 00:13:20]} {[%emt 00:00:37]} Bxf6 {[%clk 00:14:30]} {[%emt
00:00:26]} 17. Qh5 {[%clk 00:13:01]} {[%emt 00:00:25]} g6 {[%clk 00:14:04]}
{[%emt 00:00:32]} 18. Qxd5 {[%clk 00:12:47]} {[%emt 00:00:17]} Be6 {[%clk
00:13:10]} {[%emt 00:01:01]} 19. Qf3 {[%clk 00:12:14]} {[%emt 00:00:36]} Bg7
{[%clk 00:12:46]} {[%emt 00:00:31]} 20. Be4 {[%clk 00:06:51]} {[%emt 00:05:27]}
c4 {[%clk 00:09:47]} {[%emt 00:03:05]} 21. Nc1 {[%clk 00:06:12]} {[%emt
00:00:45]} Bd5 {[%clk 00:09:05]} {[%emt 00:00:48]} 22. Qg4 {[%clk 00:01:36]}
{[%emt 00:04:40]} h5 {[%clk 00:07:33]} {[%emt 00:01:37]} 23. Qh3 {[%clk
00:01:40]} {[%emt 00:00:01]} Rc7 {[%clk 00:06:01]} {[%emt 00:01:37]} 24. Qh4
{[%clk 00:01:10]} {[%emt 00:00:35]} Rce7 {[%clk 00:04:52]} {[%emt 00:01:13]} 25.
a3 {[%clk 00:00:07]} {[%emt 00:01:45]} Rxe4 {[%clk 00:05:50]} {[%emt 00:00:06]}
26. Rxe4 {[%clk 00:00:11]} {[%emt 00:00:01]} Rxe4 {[%clk 00:05:53]} {[%emt
00:00:02]} 27. Qd8+ {[%emt 00:00:07]} Qxd8 {[%clk 00:05:51]} {[%emt 00:00:02]}
28. Na2 {[%clk 00:00:13]} {[%emt 00:00:06]} Qe7 {[%clk 00:05:52]} {[%emt
00:00:04]} 29. Kf1 {[%emt 00:00:15]} 0-1



[ePGN "0.1;DGT LiveChess/2.2.6"]

[Event "MČR mládeže v rapid šachu 2024 H10"]
[Site "Harrachov, Czech Republic"]
[Date "????.??.??"]
[Round "8.3"]
[White "Lutskiy Mikhail"]
[Black "Skoloud Josef"]
[Result "1-0"]
[TimeControl "20+5"]
[WhiteFideId "23744308"]
[BlackFideId "23744111"]
[WhiteElo "1729"]
[BlackElo "1683"]

1. e4 {[%clk 00:20:04]} {[%emt 00:00:04]} e5 {[%clk 00:20:06]} {[%emt
00:00:04]} 2. Nf3 {[%clk 00:20:08]} {[%emt 00:00:01]} Nc6 {[%clk 00:20:07]}
{[%emt 00:00:05]} 3. Bc4 {[%clk 00:20:11]} {[%emt 00:00:02]} Nf6 {[%clk
00:20:09]} {[%emt 00:00:04]} 4. d3 {[%clk 00:20:15]} Be7 {[%clk 00:20:08]}
{[%emt 00:00:06]} 5. c3 {[%clk 00:19:49]} {[%emt 00:00:30]} d6 {[%clk
00:19:59]} {[%emt 00:00:13]} 6. O-O {[%clk 00:19:49]} {[%emt 00:00:06]} O-O
{[%clk 00:19:36]} {[%emt 00:00:28]} 7. b4 {[%clk 00:19:49]} {[%emt 00:00:05]}
Bg4 {[%clk 00:16:58]} {[%emt 00:02:43]} 8. h3 {[%clk 00:19:47]} {[%emt
00:00:07]} Bh5 {[%clk 00:16:36]} {[%emt 00:00:27]} 9. Nbd2 {[%clk 00:19:50]}
{[%emt 00:00:02]} d5 {[%clk 00:14:14]} {[%emt 00:02:27]} 10. Bb5 {[%clk
00:18:58]} {[%emt 00:00:57]} Qd6 {[%clk 00:12:54]} {[%emt 00:01:25]} 11. Bxc6
{[%clk 00:18:23]} {[%emt 00:00:41]} bxc6 {[%clk 00:12:42]} {[%emt 00:00:18]} 12.
Qc2 {[%clk 00:18:04]} {[%emt 00:00:24]} a5 {[%clk 00:10:55]} {[%emt 00:01:52]}
13. a4 {[%clk 00:17:11]} {[%emt 00:00:58]} axb4 {[%clk 00:10:02]} {[%emt
00:00:58]} 14. cxb4 {[%clk 00:17:14]} {[%emt 00:00:02]} Bxf3 {[%clk 00:09:09]}
{[%emt 00:00:57]} 15. Nxf3 {[%clk 00:17:14]} {[%emt 00:00:04]} Qxb4 {[%clk
00:08:30]} {[%emt 00:00:44]} 16. Ba3 {[%clk 00:17:13]} {[%emt 00:00:07]} Qxa3
{[%clk 00:08:03]} {[%emt 00:00:32]} 17. Rxa3 {[%clk 00:17:09]} {[%emt
00:00:08]} Bxa3 {[%clk 00:08:05]} {[%emt 00:00:02]} 18. Qxc6 {[%clk 00:17:12]}
{[%emt 00:00:02]} dxe4 {[%clk 00:07:26]} {[%emt 00:00:44]} 19. dxe4 {[%clk
00:17:16]} {[%emt 00:00:02]} Bd6 {[%clk 00:07:19]} {[%emt 00:00:11]} 20. Nh4
{[%clk 00:16:59]} {[%emt 00:00:19]} g6 {[%clk 00:07:05]} {[%emt 00:00:23]} 21.
Nf3 {[%clk 00:16:49]} {[%emt 00:00:15]} Rab8 {[%clk 00:06:25]} {[%emt
00:00:45]} 22. a5 {[%clk 00:16:26]} {[%emt 00:00:28]} Rb4 {[%clk 00:05:53]}
{[%emt 00:00:37]} 23. Re1 {[%clk 00:16:13]} {[%emt 00:00:14]} Rfb8 {[%clk
00:05:28]} {[%emt 00:00:34]} 24. a6 {[%clk 00:15:52]} {[%emt 00:00:27]} R4b6
{[%clk 00:05:29]} {[%emt 00:00:04]} 25. a7 {[%clk 00:15:42]} {[%emt 00:00:14]}
Rb4 {[%clk 00:04:28]} {[%emt 00:01:05]} 26. axb8=Q+ {[%clk 00:15:32]} {[%emt
00:00:16]} Rxb8 {[%clk 00:04:29]} {[%emt 00:00:04]} 27. Nd2 {[%clk 00:15:27]}
{[%emt 00:00:10]} Bb4 {[%clk 00:03:43]} {[%emt 00:00:51]} 28. Qxf6 {[%clk
00:14:58]} {[%emt 00:00:34]} Bxd2 {[%clk 00:03:28]} {[%emt 00:00:20]} 29. Rd1
{[%clk 00:15:01]} {[%emt 00:00:02]} Bc3 {[%clk 00:03:28]} {[%emt 00:00:06]} 30.
Rd8+ {[%clk 00:15:00]} {[%emt 00:00:05]} Rxd8 {[%clk 00:03:31]} {[%emt
00:00:02]} 31. Qxd8+ {[%clk 00:15:04]} {[%emt 00:00:01]} Kg7 {[%clk 00:03:33]}
{[%emt 00:00:03]} 32. Qxc7 {[%clk 00:15:07]} {[%emt 00:00:02]} Bd4 {[%emt
00:00:07]} 33. Kf1 {[%clk 00:15:01]} {[%emt 00:00:07]} h6 {[%clk 00:03:21]}
{[%emt 00:00:20]} 34. f4 {[%clk 00:14:56]} {[%emt 00:00:09]} exf4 {[%clk
00:03:15]} {[%emt 00:00:11]} 35. Qxf4 {[%clk 00:14:59]} {[%emt 00:00:02]} g5
{[%clk 00:03:05]} {[%emt 00:00:15]} 36. Qf5 {[%clk 00:14:59]} {[%emt 00:00:04]}
Bc3 {[%clk 00:02:36]} {[%emt 00:00:36]} 37. e5 {[%clk 00:15:01]} {[%emt
00:00:03]} Bd2 {[%clk 00:02:13]} {[%emt 00:00:28]} 38. Qf6+ {[%clk 00:15:03]}
{[%emt 00:00:03]} Kg8 {[%clk 00:01:46]} {[%emt 00:00:33]} 39. Ke2 {[%clk
00:15:07]} {[%emt 00:00:01]} Bf4 {[%clk 00:01:39]} {[%emt 00:00:12]} 40. Kf3
{[%clk 00:15:10]} {[%emt 00:00:02]} h5 {[%clk 00:01:31]} {[%emt 00:00:13]} 41.
g4 {[%clk 00:15:05]} {[%emt 00:00:10]} hxg4+ {[%clk 00:01:16]} {[%emt
00:00:20]} 42. Kxg4 {[%clk 00:15:05]} {[%emt 00:00:05]} Bd2 {[%clk 00:00:40]}
{[%emt 00:00:41]} 43. Kh5 {[%clk 00:15:05]} {[%emt 00:00:03]} Bc1 {[%clk
00:00:39]} {[%emt 00:00:08]} 44. Qc6 {[%clk 00:14:46]} {[%emt 00:00:19]} Bf4
{[%clk 00:00:37]} {[%emt 00:00:11]} 45. e6 {[%clk 00:14:47]} {[%emt 00:00:04]}
fxe6 {[%clk 00:00:37]} {[%emt 00:00:05]} 46. Qxe6+ {[%clk 00:14:50]} {[%emt
00:00:02]} Kh7 {[%clk 00:00:11]} {[%emt 00:00:31]} 47. Qf7+ {[%clk 00:14:52]}
{[%emt 00:00:02]} Kh8 {[%clk 00:00:14]} {[%emt 00:00:02]} 48. Kg6 {[%clk
00:14:56]} {[%emt 00:00:01]} Be5 {[%clk 00:00:18]} {[%emt 00:00:02]} 49. Qh7#
{[%clk 00:14:59]} {[%emt 00:00:01]} 1-0



[ePGN "0.1;DGT LiveChess/2.2.6"]

[Event "MČR mládeže v rapid šachu 2024 H10"]
[Site "Harrachov, Czech Republic"]
[Date "????.??.??"]
[Round "8.4"]
[White "Burel Jan"]
[Black "Strihavka Petr"]
[Result "1/2-1/2"]
[TimeControl "20+5"]
[WhiteFideId "23754907"]
[BlackFideId "23760702"]
[WhiteElo "1566"]
[BlackElo "1546"]

1. d4 {[%clk 00:20:06]} {[%emt 00:00:02]} d5 {[%clk 00:20:06]} {[%emt
00:00:05]} 2. c4 {[%clk 00:20:08]} {[%emt 00:00:03]} e6 {[%clk 00:20:09]}
{[%emt 00:00:03]} 3. Nc3 {[%clk 00:20:09]} {[%emt 00:00:04]} Nf6 {[%clk
00:20:12]} {[%emt 00:00:02]} 4. Bg5 {[%clk 00:20:09]} {[%emt 00:00:05]} Be7
{[%clk 00:20:15]} {[%emt 00:00:02]} 5. e3 {[%clk 00:20:07]} {[%emt 00:00:07]}
O-O {[%clk 00:20:15]} {[%emt 00:00:05]} 6. Nf3 {[%clk 00:20:04]} {[%emt
00:00:07]} b6 {[%clk 00:20:17]} {[%emt 00:00:03]} 7. Be2 {[%clk 00:19:51]}
{[%emt 00:00:18]} dxc4 {[%clk 00:20:14]} {[%emt 00:00:08]} 8. Bxc4 {[%clk
00:19:53]} {[%emt 00:00:03]} Bb7 {[%clk 00:20:13]} {[%emt 00:00:07]} 9. a3
{[%clk 00:19:33]} {[%emt 00:00:26]} Nbd7 {[%clk 00:20:14]} {[%emt 00:00:04]} 10.
Qe2 {[%clk 00:19:19]} {[%emt 00:00:18]} c5 {[%clk 00:19:30]} {[%emt 00:00:48]}
11. O-O {[%clk 00:19:02]} {[%emt 00:00:22]} Ne4 {[%clk 00:18:37]} {[%emt
00:00:58]} 12. Nxe4 {[%clk 00:19:04]} {[%emt 00:00:03]} Bxe4 {[%clk 00:18:38]}
{[%emt 00:00:04]} 13. Bxe7 {[%clk 00:19:06]} {[%emt 00:00:03]} Qxe7 {[%clk
00:18:38]} {[%emt 00:00:05]} 14. Bd3 {[%clk 00:19:02]} {[%emt 00:00:09]} Bxd3
{[%clk 00:18:05]} {[%emt 00:00:38]} 15. Qxd3 {[%clk 00:19:04]} {[%emt
00:00:03]} Rfd8 {[%clk 00:17:57]} {[%emt 00:00:12]} 16. Qb5 {[%clk 00:18:00]}
{[%emt 00:01:09]} Rac8 {[%clk 00:17:19]} {[%emt 00:00:42]} 17. Rac1 {[%clk
00:17:52]} {[%emt 00:00:14]} h6 {[%clk 00:16:39]} {[%emt 00:00:45]} 18. h3
{[%clk 00:17:50]} {[%emt 00:00:08]} cxd4 {[%clk 00:15:37]} {[%emt 00:01:07]} 19.
Nxd4 {[%clk 00:17:43]} {[%emt 00:00:11]} Qd6 {[%clk 00:14:18]} {[%emt
00:01:24]} 20. Rfd1 {[%clk 00:16:31]} {[%emt 00:01:17]} Nc5 {[%clk 00:13:57]}
{[%emt 00:00:26]} 21. b4 {[%clk 00:15:29]} {[%emt 00:01:07]} Ne4 {[%clk
00:13:29]} {[%emt 00:00:32]} 22. Qd3 {[%clk 00:12:44]} {[%emt 00:02:49]} Nf6
{[%clk 00:13:03]} {[%emt 00:00:37]} 23. Qb1 {[%clk 00:12:12]} {[%emt 00:00:42]}
Rxc1 {[%clk 00:12:06]} {[%emt 00:01:02]} 24. Rxc1 {[%clk 00:11:55]} {[%emt
00:00:23]} Qd5 {[%clk 00:10:43]} {[%emt 00:01:26]} 25. Qb3 {[%clk 00:10:37]}
{[%emt 00:01:25]} Qxb3 {[%clk 00:10:39]} {[%emt 00:00:09]} 26. Nxb3 {[%clk
00:10:39]} {[%emt 00:00:03]} Rd3 {[%clk 00:10:35]} {[%emt 00:00:08]} 27. Rb1
{[%clk 00:09:20]} {[%emt 00:01:24]} Ne4 {[%clk 00:10:09]} {[%emt 00:00:31]} 28.
a4 {[%clk 00:08:54]} {[%emt 00:00:31]} Nc3 {[%clk 00:10:04]} {[%emt 00:00:10]}
29. Re1 {[%clk 00:08:20]} {[%emt 00:00:38]} Nxa4 {[%clk 00:09:53]} {[%emt
00:00:17]} 30. Nd4 {[%clk 00:08:21]} {[%emt 00:00:03]} Kf8 {[%clk 00:09:21]}
{[%emt 00:00:38]} 31. Ra1 {[%clk 00:08:13]} {[%emt 00:00:14]} Nc3 {[%clk
00:08:46]} {[%emt 00:00:40]} 32. Rxa7 {[%clk 00:08:08]} {[%emt 00:00:10]} Nd5
{[%clk 00:08:19]} {[%emt 00:00:31]} 33. b5 {[%clk 00:07:38]} {[%emt 00:00:36]}
g6 {[%clk 00:07:26]} {[%emt 00:00:55]} 34. Rb7 {[%clk 00:06:41]} {[%emt
00:01:04]} Rd1+ {[%clk 00:06:43]} {[%emt 00:00:49]} 35. Kh2 {[%clk 00:06:41]}
{[%emt 00:00:04]} Rd2 {[%clk 00:06:12]} {[%emt 00:00:36]} 36. Kg1 {[%clk
00:06:39]} {[%emt 00:00:06]} h5 {[%clk 00:05:41]} {[%emt 00:00:37]} 1/2-1/2



[ePGN "0.1;DGT LiveChess/2.2.6"]

[Event "MČR mládeže v rapid šachu 2024 H10"]
[Site "Harrachov, Czech Republic"]
[Date "????.??.??"]
[Round "8.5"]
[White "Dlouhy Martin"]
[Black "Bukovskij Dmitri"]
[Result "0-1"]
[TimeControl "20+5"]
[WhiteFideId "23773200"]
[BlackFideId "23749660"]
[WhiteElo "1648"]
[BlackElo "1700"]

1. d4 {[%clk 00:20:07]} {[%emt 00:00:02]} d5 {[%clk 00:20:10]} {[%emt
00:00:01]} 2. c4 {[%clk 00:20:10]} {[%emt 00:00:02]} e6 {[%clk 00:20:14]} 3.
Nc3 {[%clk 00:20:11]} {[%emt 00:00:04]} Nf6 {[%clk 00:20:18]} 4. e3 {[%clk
00:20:08]} {[%emt 00:00:08]} Bb4 {[%clk 00:20:13]} {[%emt 00:00:10]} 5. Bd2
{[%clk 00:20:11]} {[%emt 00:00:02]} Nc6 {[%clk 00:20:09]} {[%emt 00:00:11]} 6.
Nf3 {[%clk 00:20:04]} {[%emt 00:00:10]} O-O {[%clk 00:20:11]} {[%emt 00:00:04]}
7. Be2 {[%clk 00:20:03]} {[%emt 00:00:06]} Bxc3 {[%clk 00:20:12]} {[%emt
00:00:04]} 8. Bxc3 {[%clk 00:20:05]} {[%emt 00:00:03]} Ne4 {[%clk 00:20:11]}
{[%emt 00:00:06]} 9. O-O {[%clk 00:19:50]} {[%emt 00:00:20]} f5 {[%clk
00:20:14]} {[%emt 00:00:02]} 10. cxd5 {[%clk 00:19:29]} {[%emt 00:00:27]} exd5
{[%emt 00:00:03]} 11. Bd3 {[%clk 00:19:13]} {[%emt 00:00:19]} Rf6 {[%clk
00:19:33]} {[%emt 00:00:50]} 12. Bxe4 {[%clk 00:18:10]} {[%emt 00:01:08]} fxe4
{[%clk 00:19:36]} {[%emt 00:00:02]} 13. Nd2 {[%clk 00:18:05]} {[%emt 00:00:10]}
Rg6 {[%clk 00:19:36]} {[%emt 00:00:05]} 14. Kh1 {[%clk 00:18:00]} {[%emt
00:00:10]} Qg5 {[%clk 00:19:28]} {[%emt 00:00:13]} 15. Rg1 {[%clk 00:17:45]}
{[%emt 00:00:20]} Bg4 {[%emt 00:00:14]} 16. Qb3 {[%clk 00:17:25]} {[%emt
00:00:24]} b6 {[%clk 00:18:48]} {[%emt 00:00:38]} 17. Nxe4 {[%clk 00:17:03]}
{[%emt 00:00:27]} Qf5 {[%clk 00:18:26]} {[%emt 00:00:27]} 18. f3 {[%clk
00:16:28]} {[%emt 00:00:40]} Bxf3 {[%clk 00:18:22]} {[%emt 00:00:09]} 19. Ng3
{[%clk 00:16:06]} {[%emt 00:00:27]} Rxg3 {[%clk 00:18:25]} {[%emt 00:00:02]} 20.
Raf1 {[%clk 00:15:23]} {[%emt 00:00:48]} Bxg2+ {[%clk 00:18:22]} {[%emt
00:00:08]} 21. Rxg2 {[%clk 00:14:56]} {[%emt 00:00:32]} Qxf1+ {[%clk 00:18:25]}
{[%emt 00:00:02]} 22. Rg1 {[%clk 00:15:00]} {[%emt 00:00:01]} Qxg1# {[%clk
00:18:28]} {[%emt 00:00:02]} 0-1



[ePGN "0.1;DGT LiveChess/2.2.6"]